[Event "*** Titled Tuesday Blitz"]
[Site "Chess.com"]
[Date "2020.03.03"]
[Round "5"]
[White "Peroncio"]
[Black "MishkaFighter"]
[Result "0-1"]
[WhiteElo "2646"]
[BlackElo "2504"]
[TimeControl "180+1"]
[EndTime "9:51:08 PST"]
[Termination "MishkaFighter won by resignation"]

1. Nf3 {[%clk 0:03:00.9]} 1... g6 {[%clk 0:02:58.3]} 2. d4 {[%clk 0:02:57.7]}
2... Nf6 {[%clk 0:02:58.1]} 3. Bg5 {[%clk 0:02:55.1]} 3... Bg7 {[%clk
0:02:57.3]} 4. Nbd2 {[%clk 0:02:55]} 4... O-O {[%clk 0:02:56.6]} 5. e4 {[%clk
0:02:51.8]} 5... d6 {[%clk 0:02:56.6]} 6. Bd3 {[%clk 0:02:48.7]} 6... Nc6 {[%clk
0:02:56.8]} 7. c3 {[%clk 0:02:48.9]} 7... e5 {[%clk 0:02:57]} 8. O-O {[%clk
0:02:42.2]} 8... h6 {[%clk 0:02:56.5]} 9. Bh4 {[%clk 0:02:39.4]} 9... Qe8 {[%clk
0:02:56.8]} 10. Re1 {[%clk 0:02:37.2]} 10... Nh5 {[%clk 0:02:56.9]} 11. Bb5
{[%clk 0:01:44]} 11... a6 {[%clk 0:02:52.6]} 12. Ba4 {[%clk 0:01:26]} 12... b5
{[%clk 0:02:51.6]} 13. Bb3 {[%clk 0:01:26.6]} 13... exd4 {[%clk 0:02:50.1]} 14.
cxd4 {[%clk 0:01:26.7]} 14... Nxd4 {[%clk 0:02:49.9]} 15. Nxd4 {[%clk
0:01:24.6]} 15... Bxd4 {[%clk 0:02:50.8]} 16. a4 {[%clk 0:01:04.4]} 16... Bxb2
{[%clk 0:02:49.7]} 17. Ra2 {[%clk 0:01:03.3]} 17... Bg7 {[%clk 0:02:48.8]} 18.
Qc2 {[%clk 0:00:51.4]} 18... g5 {[%clk 0:02:16.1]} 19. Bg3 {[%clk 0:00:49.7]}
19... Nxg3 {[%clk 0:02:16.4]} 20. hxg3 {[%clk 0:00:50.6]} 20... c5 {[%clk
0:02:10.5]} 21. axb5 {[%clk 0:00:47.7]} 21... Qxb5 {[%clk 0:02:09.9]} 22. Bd5
{[%clk 0:00:48.4]} 22... Ra7 {[%clk 0:02:07.5]} 23. Nc4 {[%clk 0:00:48.5]} 23...
Rd8 {[%clk 0:01:55.7]} 24. Rb1 {[%clk 0:00:46.2]} 24... Qe8 {[%clk 0:01:55.9]}
25. Rb8 {[%clk 0:00:44]} 25... Be6 {[%clk 0:01:52.8]} 26. Nxd6 {[%clk
0:00:44.1]} 26... Qe7 {[%clk 0:01:43.3]} 27. Rxd8+ {[%clk 0:00:25.2]} 27... Qxd8
{[%clk 0:01:44.2]} 28. Bxe6 {[%clk 0:00:20.2]} 28... fxe6 {[%clk 0:01:41.5]} 29.
Nc4 {[%clk 0:00:20]} 29... Bd4 {[%clk 0:01:41.9]} 30. e5 {[%clk 0:00:20.3]}
30... Kg7 {[%clk 0:01:39]} 31. Qb3 {[%clk 0:00:15.1]} 31... Rf7 {[%clk
0:01:38.2]} 32. Qb6 {[%clk 0:00:14.8]} 32... Qd5 {[%clk 0:01:36.5]} 33. Qxa6
{[%clk 0:00:10.9]} 33... Bxf2+ {[%clk 0:01:34.7]} 34. Rxf2 {[%clk 0:00:10.6]}
34... Qd1+ {[%clk 0:01:34.6]} 35. Kh2 {[%clk 0:00:11.2]} 35... Rxf2 {[%clk
0:01:34.4]} 36. Nd6 {[%clk 0:00:11.7]} 36... Qd5 {[%clk 0:01:15.8]} 37. Qa7+
{[%clk 0:00:03.8]} 37... Kg6 {[%clk 0:01:16.2]} 38. Ne4 {[%clk 0:00:02.1]} 0-1

[Event "*** Titled Tuesday Blitz"]
[Site "Chess.com"]
[Date "2020.03.03"]
[Round "5"]
[White "Sashadav97"]
[Black "piscatorox"]
[Result "1-0"]
[WhiteElo "2573"]
[BlackElo "2271"]
[TimeControl "180+1"]
[EndTime "9:51:22 PST"]
[Termination "Sashadav97 won on time"]

1. d4 {[%clk 0:03:00.9]} 1... Nf6 {[%clk 0:02:59.3]} 2. c4 {[%clk 0:03:01.1]}
2... g6 {[%clk 0:02:59.4]} 3. Nc3 {[%clk 0:03:01.5]} 3... Bg7 {[%clk 0:02:59.8]}
4. e4 {[%clk 0:03:01.4]} 4... d6 {[%clk 0:02:59.7]} 5. Nf3 {[%clk 0:03:01.4]}
5... O-O {[%clk 0:02:59.6]} 6. Be2 {[%clk 0:03:02]} 6... Nbd7 {[%clk 0:02:59.6]}
7. O-O {[%clk 0:03:01.1]} 7... e5 {[%clk 0:02:59.3]} 8. Be3 {[%clk 0:03:01.3]}
8... Ng4 {[%clk 0:02:58.3]} 9. Bg5 {[%clk 0:02:59.4]} 9... f6 {[%clk 0:02:58.3]}
10. Bh4 {[%clk 0:03:00]} 10... g5 {[%clk 0:02:57.7]} 11. Bg3 {[%clk 0:02:58.6]}
11... Nh6 {[%clk 0:02:57]} 12. dxe5 {[%clk 0:02:45.3]} 12... fxe5 {[%clk
0:02:50.4]} 13. Nd2 {[%clk 0:02:42.9]} 13... Nf6 {[%clk 0:02:36.7]} 14. b4
{[%clk 0:02:36.7]} 14... Nf7 {[%clk 0:02:17.3]} 15. Nd5 {[%clk 0:02:30.6]} 15...
c6 {[%clk 0:02:15.1]} 16. Ne3 {[%clk 0:02:26.8]} 16... Be6 {[%clk 0:02:09.2]}
17. b5 {[%clk 0:02:21.5]} 17... Qc7 {[%clk 0:02:07.9]} 18. a4 {[%clk 0:02:13.8]}
18... Rad8 {[%clk 0:02:03.2]} 19. Qc2 {[%clk 0:02:08.4]} 19... h5 {[%clk
0:01:57.3]} 20. h4 {[%clk 0:02:04.8]} 20... Ng4 {[%clk 0:01:50.9]} 21. Bxg4
{[%clk 0:01:37]} 21... hxg4 {[%clk 0:01:46.2]} 22. h5 {[%clk 0:01:37.1]} 22...
Nh6 {[%clk 0:01:34.7]} 23. c5 {[%clk 0:01:31.1]} 23... Qf7 {[%clk 0:01:11.9]}
24. bxc6 {[%clk 0:01:26.5]} 24... bxc6 {[%clk 0:01:11.3]} 25. cxd6 {[%clk
0:01:26.7]} 25... Rxd6 {[%clk 0:01:09.6]} 26. Ndc4 {[%clk 0:01:26.3]} 26... Rd4
{[%clk 0:00:45.4]} 27. Nxe5 {[%clk 0:01:17.8]} 27... Qxh5 {[%clk 0:00:43.3]} 28.
Nxc6 {[%clk 0:01:17.3]} 28... Nf7 {[%clk 0:00:24.1]} 29. e5 {[%clk 0:01:06.7]}
29... Rd7 {[%clk 0:00:20.6]} 30. Rad1 {[%clk 0:01:05]} 30... Rc7 {[%clk
0:00:19.9]} 31. Rd6 {[%clk 0:01:03]} 31... Nxe5 {[%clk 0:00:09]} 32. Rxe6 {[%clk
0:01:00.7]} 32... Rfc8 {[%clk 0:00:08.3]} 33. Bxe5 {[%clk 0:00:57.7]} 33... Bxe5
{[%clk 0:00:07.1]} 34. Rxe5 {[%clk 0:00:55.8]} 34... Rxc6 {[%clk 0:00:06.4]} 35.
Qf5 {[%clk 0:00:56.1]} 35... Rh6 {[%clk 0:00:05.6]} 36. Qxg5+ {[%clk 0:00:56.3]}
36... Qxg5 {[%clk 0:00:04.9]} 37. Rxg5+ {[%clk 0:00:57.2]} 37... Kh8 {[%clk
0:00:04.9]} 38. Rxg4 {[%clk 0:00:57.2]} 38... Ra6 {[%clk 0:00:04.3]} 39. g3
{[%clk 0:00:57.1]} 39... Rc3 {[%clk 0:00:02.7]} 40. Kg2 {[%clk 0:00:57.2]} 40...
Ra3 {[%clk 0:00:02.5]} 41. Rh1+ {[%clk 0:00:57.1]} 1-0

[Event "*** Titled Tuesday Blitz"]
[Site "Chess.com"]
[Date "2020.03.03"]
[Round "5"]
[White "MITerryble"]
[Black "Andrei_Belozerov"]
[Result "1-0"]
[WhiteElo "2924"]
[BlackElo "2640"]
[TimeControl "180+1"]
[EndTime "9:51:25 PST"]
[Termination "MITerryble won by checkmate"]

1. e4 {[%clk 0:03:00.9]} 1... c5 {[%clk 0:02:58.7]} 2. Nf3 {[%clk 0:03:01.3]}
2... d6 {[%clk 0:02:59.1]} 3. Bb5+ {[%clk 0:03:01.2]} 3... Nd7 {[%clk
0:02:58.4]} 4. d4 {[%clk 0:03:00.8]} 4... cxd4 {[%clk 0:02:53.3]} 5. Qxd4 {[%clk
0:03:01.7]} 5... a6 {[%clk 0:02:51.6]} 6. Bxd7+ {[%clk 0:03:01]} 6... Bxd7
{[%clk 0:02:51.6]} 7. O-O {[%clk 0:03:01.9]} 7... Rc8 {[%clk 0:02:42.7]} 8. Bg5
{[%clk 0:03:00.9]} 8... h6 {[%clk 0:02:38.7]} 9. Bh4 {[%clk 0:03:00.8]} 9... Qc7
{[%clk 0:02:36.1]} 10. Nc3 {[%clk 0:03:00.5]} 10... Nf6 {[%clk 0:02:09.4]} 11.
e5 {[%clk 0:02:55.7]} 11... dxe5 {[%clk 0:02:03.3]} 12. Nxe5 {[%clk 0:02:56.6]}
12... Qc5 {[%clk 0:01:47.6]} 13. Qxc5 {[%clk 0:02:47]} 13... Rxc5 {[%clk
0:01:45.7]} 14. Bxf6 {[%clk 0:02:27.2]} 14... gxf6 {[%clk 0:01:42.4]} 15. Nxd7
{[%clk 0:02:27.6]} 15... Kxd7 {[%clk 0:01:42.5]} 16. Rad1+ {[%clk 0:02:27]}
16... Kc8 {[%clk 0:01:34]} 17. Rd2 {[%clk 0:02:24.1]} 17... e6 {[%clk
0:01:31.4]} 18. Ne4 {[%clk 0:02:20.8]} 18... Rc7 {[%clk 0:01:10.3]} 19. Rfd1
{[%clk 0:02:17.7]} 19... Be7 {[%clk 0:01:08.1]} 20. c3 {[%clk 0:02:18.2]} 20...
f5 {[%clk 0:00:55.6]} 21. Nd6+ {[%clk 0:02:16.2]} 21... Bxd6 {[%clk 0:00:55.8]}
22. Rxd6 {[%clk 0:02:17.1]} 22... h5 {[%clk 0:00:48.9]} 23. Kf1 {[%clk
0:02:13.3]} 23... h4 {[%clk 0:00:47.7]} 24. h3 {[%clk 0:02:13.4]} 24... Rc4
{[%clk 0:00:21.3]} 25. Rd7 {[%clk 0:02:02.9]} 25... Rc7 {[%clk 0:00:18.9]} 26.
R7d4 {[%clk 0:02:03.4]} 26... Rc5 {[%clk 0:00:17.6]} 27. a4 {[%clk 0:02:02.5]}
27... a5 {[%clk 0:00:17.3]} 28. Ke2 {[%clk 0:02:01.2]} 28... Rg8 {[%clk
0:00:15.2]} 29. Kf3 {[%clk 0:02:00.7]} 29... Rh8 {[%clk 0:00:14.3]} 30. R1d2
{[%clk 0:01:49]} 30... Rh7 {[%clk 0:00:13.3]} 31. Rd8+ {[%clk 0:01:48.3]} 31...
Kc7 {[%clk 0:00:13.5]} 32. R2d7+ {[%clk 0:01:46.8]} 32... Kc6 {[%clk 0:00:13.6]}
33. Re7 {[%clk 0:01:47]} 33... b5 {[%clk 0:00:12.4]} 34. Rc8+ {[%clk 0:01:26.2]}
34... Kd6 {[%clk 0:00:12]} 35. Rd7+ {[%clk 0:01:26.4]} 35... Kxd7 {[%clk
0:00:11.7]} 36. Rxc5 {[%clk 0:01:27.3]} 36... bxa4 {[%clk 0:00:11.2]} 37. Rxa5
{[%clk 0:01:28.2]} 37... Kc6 {[%clk 0:00:10.6]} 38. Rxa4 {[%clk 0:01:28.2]}
38... f6 {[%clk 0:00:10.7]} 39. Rc4+ {[%clk 0:01:24.4]} 39... Kd5 {[%clk
0:00:10.5]} 40. Rd4+ {[%clk 0:01:24.8]} 40... Ke5 {[%clk 0:00:10.6]} 41. Ke3
{[%clk 0:01:24]} 41... Rb7 {[%clk 0:00:09.7]} 42. f4# {[%clk 0:01:23.6]} 1-0

[Event "*** Titled Tuesday Blitz"]
[Site "Chess.com"]
[Date "2020.03.03"]
[Round "5"]
[White "nonscitis"]
[Black "ural58"]
[Result "1-0"]
[WhiteElo "2624"]
[BlackElo "2419"]
[TimeControl "180+1"]
[EndTime "9:51:25 PST"]
[Termination "nonscitis won by resignation"]

1. d4 {[%clk 0:03:00.9]} 1... d5 {[%clk 0:01:17.5]} 2. c4 {[%clk 0:03:01.8]}
2... e5 {[%clk 0:01:17.1]} 3. dxe5 {[%clk 0:02:58.8]} 3... d4 {[%clk 0:01:17.3]}
4. Nf3 {[%clk 0:02:59.2]} 4... Nc6 {[%clk 0:01:15.9]} 5. g3 {[%clk 0:02:59.2]}
5... Nge7 {[%clk 0:01:13.9]} 6. Bg2 {[%clk 0:02:51.5]} 6... Ng6 {[%clk
0:01:13.8]} 7. Bg5 {[%clk 0:02:50.5]} 7... Qd7 {[%clk 0:01:13]} 8. O-O {[%clk
0:02:46.8]} 8... h6 {[%clk 0:01:12.9]} 9. Bf4 {[%clk 0:02:41.3]} 9... Nxf4
{[%clk 0:01:02.6]} 10. gxf4 {[%clk 0:02:42.2]} 10... Qf5 {[%clk 0:01:03.2]} 11.
Nxd4 {[%clk 0:02:35.8]} 11... Nxd4 {[%clk 0:00:59.4]} 12. Qxd4 {[%clk
0:02:36.7]} 12... Be7 {[%clk 0:00:56.8]} 13. Qe4 {[%clk 0:02:35.2]} 13... Qh5
{[%clk 0:00:54.4]} 14. Bf3 {[%clk 0:02:28.3]} 14... Bg4 {[%clk 0:00:52.1]} 15.
Bxg4 {[%clk 0:02:24.9]} 15... Qxg4+ {[%clk 0:00:51.6]} 16. Kh1 {[%clk
0:02:24.9]} 16... O-O {[%clk 0:00:49.2]} 17. Nc3 {[%clk 0:02:23]} 17... c6
{[%clk 0:00:43.8]} 18. Rg1 {[%clk 0:02:21.5]} 18... Qh4 {[%clk 0:00:42.9]} 19.
Rg3 {[%clk 0:02:12.7]} 19... Rfd8 {[%clk 0:00:37.7]} 20. Rag1 {[%clk 0:02:10.9]}
20... Bf8 {[%clk 0:00:37.8]} 21. f5 {[%clk 0:02:05.2]} 21... Qxe4+ {[%clk
0:00:36.8]} 22. Nxe4 {[%clk 0:02:04.1]} 22... Rd4 {[%clk 0:00:37.4]} 23. Rg4
{[%clk 0:01:56.3]} 23... Rad8 {[%clk 0:00:35.3]} 24. e3 {[%clk 0:01:48.2]} 24...
Rd1 {[%clk 0:00:29.5]} 25. Rxd1 {[%clk 0:01:42.3]} 25... Rxd1+ {[%clk
0:00:29.1]} 26. Rg1 {[%clk 0:01:43.2]} 26... Rd3 {[%clk 0:00:27.9]} 27. Kg2
{[%clk 0:01:38]} 27... b5 {[%clk 0:00:22.6]} 28. cxb5 {[%clk 0:01:37.1]} 28...
cxb5 {[%clk 0:00:23.5]} 29. Kf3 {[%clk 0:01:37.7]} 29... a5 {[%clk 0:00:20]} 30.
Ke2 {[%clk 0:01:36.5]} 30... Rd8 {[%clk 0:00:20]} 31. Rd1 {[%clk 0:01:34]} 31...
Re8 {[%clk 0:00:20]} 32. f4 {[%clk 0:01:30.7]} 32... Be7 {[%clk 0:00:18.7]} 33.
Nd6 {[%clk 0:01:28.9]} 33... Rb8 {[%clk 0:00:17.6]} 34. Rd5 {[%clk 0:01:24.7]}
34... b4 {[%clk 0:00:13.9]} 35. Rxa5 {[%clk 0:01:23.3]} 35... b3 {[%clk
0:00:12.4]} 36. axb3 {[%clk 0:01:17.6]} 36... Rxb3 {[%clk 0:00:12]} 37. Ra8+
{[%clk 0:01:17.1]} 37... Bf8 {[%clk 0:00:10.7]} 38. e6 {[%clk 0:01:16.7]} 38...
Rxb2+ {[%clk 0:00:10.5]} 39. Kf3 {[%clk 0:01:16]} 39... fxe6 {[%clk 0:00:11.4]}
40. fxe6 {[%clk 0:01:15.9]} 1-0

[Event "*** Titled Tuesday Blitz"]
[Site "Chess.com"]
[Date "2020.03.03"]
[Round "5"]
[White "Chigorinetz"]
[Black "ajian"]
[Result "1-0"]
[WhiteElo "2576"]
[BlackElo "2283"]
[TimeControl "180+1"]
[EndTime "9:51:31 PST"]
[Termination "Chigorinetz won by resignation"]

1. e4 {[%clk 0:02:59]} 1... c5 {[%clk 0:02:59.4]} 2. Nc3 {[%clk 0:02:54.9]} 2...
Nc6 {[%clk 0:02:59.1]} 3. Nge2 {[%clk 0:02:54.4]} 3... Nf6 {[%clk 0:02:58.4]} 4.
g3 {[%clk 0:02:52.6]} 4... e6 {[%clk 0:02:53.7]} 5. Bg2 {[%clk 0:02:51.8]} 5...
d5 {[%clk 0:02:53.9]} 6. exd5 {[%clk 0:02:51.4]} 6... exd5 {[%clk 0:02:54.8]} 7.
d4 {[%clk 0:02:51]} 7... cxd4 {[%clk 0:02:42.8]} 8. Nxd4 {[%clk 0:02:49.3]} 8...
Be7 {[%clk 0:02:41.8]} 9. O-O {[%clk 0:02:47.8]} 9... O-O {[%clk 0:02:41]} 10.
h3 {[%clk 0:02:47]} 10... Be6 {[%clk 0:02:33.8]} 11. Re1 {[%clk 0:02:45.3]}
11... Qd7 {[%clk 0:02:17.4]} 12. Nxe6 {[%clk 0:02:43]} 12... fxe6 {[%clk
0:02:16.8]} 13. Qe2 {[%clk 0:02:42.9]} 13... Nd4 {[%clk 0:01:59.4]} 14. Qd3
{[%clk 0:02:42]} 14... Bc5 {[%clk 0:01:55.9]} 15. Be3 {[%clk 0:02:39.6]} 15...
e5 {[%clk 0:01:46.3]} 16. Kh2 {[%clk 0:02:36.5]} 16... Rad8 {[%clk 0:01:35.9]}
17. a3 {[%clk 0:02:24.5]} 17... Bb6 {[%clk 0:01:29]} 18. Rf1 {[%clk 0:02:21.3]}
18... Kh8 {[%clk 0:01:27.1]} 19. Rae1 {[%clk 0:02:15.2]} 19... Qd6 {[%clk
0:01:12.6]} 20. Bxd4 {[%clk 0:02:09.2]} 20... Bxd4 {[%clk 0:01:11.5]} 21. Nb5
{[%clk 0:02:08.2]} 21... Qb6 {[%clk 0:01:02.6]} 22. Nxd4 {[%clk 0:02:07.2]}
22... exd4 {[%clk 0:01:03.5]} 23. b3 {[%clk 0:01:58.1]} 23... Qc5 {[%clk
0:00:59.4]} 24. b4 {[%clk 0:01:46.3]} 24... Qc4 {[%clk 0:00:57.6]} 25. Rd1
{[%clk 0:01:44]} 25... Rfe8 {[%clk 0:00:40.9]} 26. Bf3 {[%clk 0:01:38.2]} 26...
Ne4 {[%clk 0:00:38.1]} 27. Qxd4 {[%clk 0:01:26.4]} 27... Qxc2 {[%clk 0:00:31.1]}
28. Kg2 {[%clk 0:01:23.8]} 28... b6 {[%clk 0:00:20.3]} 29. Rfe1 {[%clk
0:01:17.1]} 29... Qc6 {[%clk 0:00:17.6]} 30. Bxe4 {[%clk 0:01:10.2]} 30... dxe4
{[%clk 0:00:11]} 31. Qxd8 {[%clk 0:01:08.3]} 31... e3+ {[%clk 0:00:11.3]} 32.
Qd5 {[%clk 0:01:06.6]} 32... Qf6 {[%clk 0:00:04.2]} 33. Rxe3 {[%clk 0:01:02.9]}
33... Rf8 {[%clk 0:00:03.6]} 34. Rf3 {[%clk 0:01:00.9]} 34... Qe7 {[%clk
0:00:03.7]} 35. Rxf8+ {[%clk 0:00:59.2]} 35... Qxf8 {[%clk 0:00:04.6]} 36. Qd8
{[%clk 0:00:56.7]} 1-0

[Event "*** Titled Tuesday Blitz"]
[Site "Chess.com"]
[Date "2020.03.03"]
[Round "5"]
[White "Saloni1299"]
[Black "Sordis"]
[Result "1-0"]
[WhiteElo "2062"]
[BlackElo "2361"]
[TimeControl "180+1"]
[EndTime "9:51:34 PST"]
[Termination "Saloni1299 won by checkmate"]

1. e4 {[%clk 0:03:00.9]} 1... c6 {[%clk 0:02:59.1]} 2. d4 {[%clk 0:02:59.7]}
2... d5 {[%clk 0:02:59]} 3. e5 {[%clk 0:02:58.2]} 3... Bf5 {[%clk 0:02:58.1]} 4.
h4 {[%clk 0:02:58.1]} 4... h5 {[%clk 0:02:57.6]} 5. Bd3 {[%clk 0:02:57.9]} 5...
Bxd3 {[%clk 0:02:51.3]} 6. Qxd3 {[%clk 0:02:58.4]} 6... e6 {[%clk 0:02:50.5]} 7.
Bg5 {[%clk 0:02:58.3]} 7... Qa5+ {[%clk 0:02:42.2]} 8. Nd2 {[%clk 0:02:57.3]}
8... Qa6 {[%clk 0:02:42.3]} 9. c4 {[%clk 0:02:57.4]} 9... Ne7 {[%clk 0:02:37.8]}
10. b3 {[%clk 0:02:48.2]} 10... Nd7 {[%clk 0:02:37.2]} 11. Ne2 {[%clk
0:02:48.5]} 11... O-O-O {[%clk 0:02:35.9]} 12. O-O {[%clk 0:02:45.7]} 12... dxc4
{[%clk 0:02:36]} 13. Nxc4 {[%clk 0:02:40.1]} 13... Kb8 {[%clk 0:02:34.8]} 14.
Qc2 {[%clk 0:02:35.3]} 14... f6 {[%clk 0:02:29]} 15. exf6 {[%clk 0:02:30.6]}
15... gxf6 {[%clk 0:02:29.9]} 16. Bf4+ {[%clk 0:02:30.6]} 16... Ka8 {[%clk
0:02:27.2]} 17. Nd6 {[%clk 0:02:30.1]} 17... Nd5 {[%clk 0:02:22.9]} 18. Nf7
{[%clk 0:02:29.7]} 18... Be7 {[%clk 0:02:10.2]} 19. Nxh8 {[%clk 0:02:20.4]}
19... Rxh8 {[%clk 0:02:11.1]} 20. Qc4 {[%clk 0:02:14.7]} 20... Qb6 {[%clk
0:02:03]} 21. Bg3 {[%clk 0:02:12.5]} 21... Rg8 {[%clk 0:02:01.2]} 22. Nf4 {[%clk
0:02:10.7]} 22... Rg4 {[%clk 0:01:46]} 23. Nxe6 {[%clk 0:02:01.1]} 23... Ne5
{[%clk 0:01:22]} 24. Qe2 {[%clk 0:01:50]} 24... Ng6 {[%clk 0:01:08]} 25. Qf3
{[%clk 0:01:14.3]} 25... Nxh4 {[%clk 0:00:18]} 26. Bxh4 {[%clk 0:01:14]} 26...
Rxh4 {[%clk 0:00:18.9]} 27. g3 {[%clk 0:00:45.5]} 27... Rg4 {[%clk 0:00:17.5]}
28. Qf5 {[%clk 0:00:43.6]} 28... a6 {[%clk 0:00:17.4]} 29. Qxh5 {[%clk
0:00:42.2]} 29... Re4 {[%clk 0:00:16.8]} 30. Rae1 {[%clk 0:00:39.9]} 30... Rxe1
{[%clk 0:00:16.7]} 31. Rxe1 {[%clk 0:00:40.4]} 31... Bb4 {[%clk 0:00:17.4]} 32.
Qe8+ {[%clk 0:00:38.9]} 32... Ka7 {[%clk 0:00:17.6]} 33. Rf1 {[%clk 0:00:38.5]}
33... Qa5 {[%clk 0:00:16.8]} 34. Qd7 {[%clk 0:00:35.2]} 34... Qxa2 {[%clk
0:00:15.6]} 35. Nd8 {[%clk 0:00:34.9]} 35... Nc7 {[%clk 0:00:05.9]} 36. Qxc7
{[%clk 0:00:34.5]} 36... Qxb3 {[%clk 0:00:06.5]} 37. Qxb7# {[%clk 0:00:34.1]}
1-0

[Event "*** Titled Tuesday Blitz"]
[Site "Chess.com"]
[Date "2020.03.03"]
[Round "5"]
[White "Firouzja2003"]
[Black "Alexander_Moskalenko"]
[Result "1/2-1/2"]
[WhiteElo "3073"]
[BlackElo "2839"]
[TimeControl "180+1"]
[EndTime "9:51:35 PST"]
[Termination "Game drawn by repetition"]

1. c4 {[%clk 0:03:00.9]} 1... e6 {[%clk 0:02:59.3]} 2. Nf3 {[%clk 0:03:00.7]}
2... d5 {[%clk 0:03:00.2]} 3. g3 {[%clk 0:03:01]} 3... Nf6 {[%clk 0:02:59.9]} 4.
Bg2 {[%clk 0:03:01.3]} 4... Be7 {[%clk 0:02:59]} 5. O-O {[%clk 0:03:01.5]} 5...
O-O {[%clk 0:02:59]} 6. b3 {[%clk 0:03:00]} 6... c5 {[%clk 0:02:57.3]} 7. Bb2
{[%clk 0:03:00.1]} 7... b6 {[%clk 0:02:54.5]} 8. d4 {[%clk 0:02:42.9]} 8... Bb7
{[%clk 0:02:51.6]} 9. dxc5 {[%clk 0:02:41.2]} 9... dxc4 {[%clk 0:02:49]} 10.
Qxd8 {[%clk 0:02:19.6]} 10... Rxd8 {[%clk 0:02:49.9]} 11. cxb6 {[%clk
0:02:20.5]} 11... axb6 {[%clk 0:02:24.3]} 12. bxc4 {[%clk 0:02:20.1]} 12... Ra4
{[%clk 0:02:22.3]} 13. Nbd2 {[%clk 0:02:16.1]} 13... Ne4 {[%clk 0:02:19.2]} 14.
Nxe4 {[%clk 0:02:14.7]} 14... Bxe4 {[%clk 0:02:20.1]} 15. Rfc1 {[%clk
0:02:05.9]} 15... Nd7 {[%clk 0:02:09.7]} 16. Nd4 {[%clk 0:01:18.6]} 16... Bxg2
{[%clk 0:02:08.4]} 17. Kxg2 {[%clk 0:01:19.1]} 17... Rc8 {[%clk 0:02:08.9]} 18.
Rd1 {[%clk 0:01:11.8]} 18... Bf6 {[%clk 0:02:00.6]} 19. Rd2 {[%clk 0:00:56]}
19... Raxc4 {[%clk 0:01:56.9]} 20. Rad1 {[%clk 0:00:54.1]} 20... Ra4 {[%clk
0:01:12.2]} 21. a3 {[%clk 0:00:26.9]} 21... h5 {[%clk 0:01:07.3]} 22. Nb5 {[%clk
0:00:26.8]} 22... Bxb2 {[%clk 0:01:02.7]} 23. Rxb2 {[%clk 0:00:26.8]} 23... Nf6
{[%clk 0:00:56.6]} 24. Rd3 {[%clk 0:00:22.4]} 24... g5 {[%clk 0:00:45.3]} 25.
Nd6 {[%clk 0:00:19.6]} 25... Rc6 {[%clk 0:00:45.1]} 26. Rb5 {[%clk 0:00:16.7]}
26... Ra5 {[%clk 0:00:41]} 27. Rxa5 {[%clk 0:00:13.4]} 27... bxa5 {[%clk
0:00:41.9]} 28. Nb7 {[%clk 0:00:14.1]} 28... a4 {[%clk 0:00:36.6]} 29. Rd4
{[%clk 0:00:14.5]} 29... Rc2 {[%clk 0:00:36.2]} 30. Kf1 {[%clk 0:00:11.3]} 30...
Rc1+ {[%clk 0:00:34.4]} 31. Kg2 {[%clk 0:00:11.7]} 31... Rc2 {[%clk 0:00:35.3]}
32. Kf1 {[%clk 0:00:12]} 32... Rc1+ {[%clk 0:00:25]} 33. Kg2 {[%clk 0:00:12.2]}
33... Rc2 {[%clk 0:00:25.9]} 1/2-1/2

[Event "*** Titled Tuesday Blitz"]
[Site "Chess.com"]
[Date "2020.03.03"]
[Round "5"]
[White "Korona_91"]
[Black "yoolund"]
[Result "1-0"]
[WhiteElo "2440"]
[BlackElo "2616"]
[TimeControl "180+1"]
[EndTime "9:51:38 PST"]
[Termination "Korona_91 won on time"]

1. e4 {[%clk 0:03:00.1]} 1... g6 {[%clk 0:03:00]} 2. d4 {[%clk 0:03:00]} 2...
Bg7 {[%clk 0:03:00]} 3. Nc3 {[%clk 0:03:00.7]} 3... d6 {[%clk 0:03:00.3]} 4. Nf3
{[%clk 0:02:56.8]} 4... a6 {[%clk 0:03:00.2]} 5. a4 {[%clk 0:02:56.3]} 5... b6
{[%clk 0:02:58.9]} 6. h3 {[%clk 0:02:55.8]} 6... e6 {[%clk 0:02:58.9]} 7. Be2
{[%clk 0:02:56.2]} 7... Ne7 {[%clk 0:02:58.9]} 8. O-O {[%clk 0:02:55.8]} 8...
Nd7 {[%clk 0:02:58.7]} 9. Be3 {[%clk 0:02:56.2]} 9... Bb7 {[%clk 0:02:58.3]} 10.
Qd2 {[%clk 0:02:55.2]} 10... h6 {[%clk 0:02:58.2]} 11. b4 {[%clk 0:02:54.6]}
11... d5 {[%clk 0:02:55]} 12. exd5 {[%clk 0:02:52.4]} 12... exd5 {[%clk
0:02:46.6]} 13. Rfe1 {[%clk 0:02:47.2]} 13... Nf6 {[%clk 0:02:23]} 14. b5 {[%clk
0:02:39.3]} 14... Ne4 {[%clk 0:02:03.7]} 15. Qd3 {[%clk 0:02:37.2]} 15... O-O
{[%clk 0:01:55.9]} 16. Ne5 {[%clk 0:02:34.1]} 16... Nf5 {[%clk 0:01:46.7]} 17.
Bg4 {[%clk 0:02:28]} 17... Nxe3 {[%clk 0:01:26.8]} 18. Rxe3 {[%clk 0:02:20.5]}
18... Bxe5 {[%clk 0:01:21.8]} 19. dxe5 {[%clk 0:02:18.4]} 19... Nxc3 {[%clk
0:01:20.9]} 20. e6 {[%clk 0:02:16.6]} 20... Ne4 {[%clk 0:01:02.1]} 21. exf7+
{[%clk 0:02:11.1]} 21... Kxf7 {[%clk 0:00:42.2]} 22. f3 {[%clk 0:02:06.4]} 22...
Nf6 {[%clk 0:00:29.8]} 23. Be6+ {[%clk 0:02:05.3]} 23... Kg7 {[%clk 0:00:26.1]}
24. Rae1 {[%clk 0:02:03.6]} 24... Qd6 {[%clk 0:00:24.7]} 25. f4 {[%clk
0:02:03.7]} 25... Rae8 {[%clk 0:00:21.9]} 26. bxa6 {[%clk 0:02:02.5]} 26... Bc6
{[%clk 0:00:17.4]} 27. f5 {[%clk 0:02:01]} 27... g5 {[%clk 0:00:16.2]} 28. h4
{[%clk 0:02:00.3]} 28... Ne4 {[%clk 0:00:14.3]} 29. Qd4+ {[%clk 0:01:55]} 29...
Rf6 {[%clk 0:00:12.2]} 30. c4 {[%clk 0:01:49]} 30... dxc4 {[%clk 0:00:08.9]} 31.
Rxe4 {[%clk 0:01:42.9]} 31... Bxe4 {[%clk 0:00:08.2]} 32. Qxe4 {[%clk
0:01:43.5]} 32... Qc5+ {[%clk 0:00:06.7]} 33. Kh1 {[%clk 0:01:43.1]} 33... Qa5
{[%clk 0:00:06.4]} 34. Rd1 {[%clk 0:01:38.3]} 34... Re7 {[%clk 0:00:04.4]} 35.
Qg4 {[%clk 0:01:22.9]} 35... Qxa4 {[%clk 0:00:01.6]} 36. hxg5 {[%clk 0:01:22]}
36... Rfxe6 {[%clk 0:00:01.8]} 37. fxe6 {[%clk 0:01:20]} 37... Kg6 {[%clk
0:00:01.4]} 38. gxh6+ {[%clk 0:01:15.1]} 38... Kxh6 {[%clk 0:00:02.3]} 39. Rd5
{[%clk 0:01:14.4]} 1-0